[Event "*** MasterClass Titled Tuesday Blitz"]
[Site "Chess.com"]
[Date "2017.09.05"]
[Round "7"]
[White "HKBurwell"]
[Black "Bryakin_Mikhail"]
[Result "0-1"]
[WhiteElo "2359"]
[BlackElo "2539"]
[TimeControl "180+2"]
[EndTime "14:41:47 PDT"]
[Termination "Bryakin_Mikhail won by resignation"]

1. d4 {[%clk 0:03:00.3]} 1... d5 {[%clk 0:02:58.1]} 2. c4 {[%clk 0:02:59]} 2...
c6 {[%clk 0:02:59.1]} 3. Nc3 {[%clk 0:03:00.8]} 3... dxc4 {[%clk 0:02:58.5]} 4.
e4 {[%clk 0:02:59.9]} 4... b5 {[%clk 0:02:57.5]} 5. a4 {[%clk 0:03:00.9]} 5...
b4 {[%clk 0:02:56.7]} 6. Nce2 {[%clk 0:03:01.8]} 6... Nf6 {[%clk 0:02:53.4]} 7.
Ng3 {[%clk 0:03:00.7]} 7... e5 {[%clk 0:02:48.7]} 8. Nf3 {[%clk 0:02:54.8]} 8...
exd4 {[%clk 0:02:27.6]} 9. Bxc4 {[%clk 0:02:49.7]} 9... Bc5 {[%clk 0:02:04.2]}
10. e5 {[%clk 0:02:31.1]} 10... Nd5 {[%clk 0:01:54.9]} 11. O-O {[%clk 0:02:17]}
11... Bg4 {[%clk 0:01:46.1]} 12. h3 {[%clk 0:02:08.3]} 12... Bxf3 {[%clk
0:01:45.6]} 13. Qxf3 {[%clk 0:02:10.3]} 13... O-O {[%clk 0:01:45.2]} 14. Nf5
{[%clk 0:02:00.5]} 14... Nd7 {[%clk 0:01:21.1]} 15. Qg3 {[%clk 0:01:38.2]} 15...
g6 {[%clk 0:01:14]} 16. Bh6 {[%clk 0:01:23.9]} 16... Re8 {[%clk 0:01:13.5]} 17.
Rae1 {[%clk 0:01:10.1]} 17... N7b6 {[%clk 0:01:05.1]} 18. e6 {[%clk 0:00:51.6]}
18... Nxc4 {[%clk 0:00:30]} 19. exf7+ {[%clk 0:00:46.5]} 19... Kxf7 {[%clk
0:00:30.8]} 20. Qf3 {[%clk 0:00:38.8]} 20... Qf6 {[%clk 0:00:25]} 21. g4 {[%clk
0:00:26.9]} 21... gxf5 {[%clk 0:00:20.1]} 22. g5 {[%clk 0:00:28.2]} 22... Qg6
{[%clk 0:00:21.2]} 23. h4 {[%clk 0:00:28.4]} 23... Ne5 {[%clk 0:00:19.9]} 24.
Qg3 {[%clk 0:00:28.3]} 24... Ng4 {[%clk 0:00:19.9]} 25. Rc1 {[%clk 0:00:22.1]}
25... Nxh6 {[%clk 0:00:16.9]} 26. Rxc5 {[%clk 0:00:22.1]} 26... Ng4 {[%clk
0:00:17.9]} 27. Rfc1 {[%clk 0:00:21.4]} 27... Re6 {[%clk 0:00:18.9]} 28. Qf3
{[%clk 0:00:18.4]} 28... Ne5 {[%clk 0:00:18.5]} 29. Qg3 {[%clk 0:00:18.4]} 29...
f4 {[%clk 0:00:19.1]} 30. Qh3 {[%clk 0:00:19.8]} 30... Qe4 {[%clk 0:00:16.3]}
31. h5 {[%clk 0:00:18.2]} 31... Nf3+ {[%clk 0:00:17.1]} 32. Kf1 {[%clk
0:00:18.7]} 32... Nd2+ {[%clk 0:00:17.8]} 33. Kg1 {[%clk 0:00:19.6]} 33... Nf3+
{[%clk 0:00:19.2]} 34. Kf1 {[%clk 0:00:20.8]} 34... Nxg5 {[%clk 0:00:20.3]} 35.
Rxc6 {[%clk 0:00:19.5]} 35... Nxh3 {[%clk 0:00:21]} 0-1

[Event "*** MasterClass Titled Tuesday Blitz"]
[Site "Chess.com"]
[Date "2017.09.05"]
[Round "7"]
[White "popov_m"]
[Black "Sanan_Sjugirov"]
[Result "0-1"]
[WhiteElo "2445"]
[BlackElo "2645"]
[TimeControl "180+2"]
[EndTime "14:41:50 PDT"]
[Termination "Sanan_Sjugirov won by resignation"]

1. d4 {[%clk 0:03:01.9]} 1... g6 {[%clk 0:02:59.4]} 2. Bf4 {[%clk 0:02:57.2]}
2... Bg7 {[%clk 0:02:16.8]} 3. Nf3 {[%clk 0:02:57.4]} 3... d6 {[%clk 0:02:18.4]}
4. e3 {[%clk 0:02:58.2]} 4... Nd7 {[%clk 0:02:19.5]} 5. h3 {[%clk 0:02:56.9]}
5... e5 {[%clk 0:02:19.6]} 6. Bh2 {[%clk 0:02:55]} 6... Ne7 {[%clk 0:02:15.4]}
7. Nbd2 {[%clk 0:02:54.9]} 7... O-O {[%clk 0:02:15.6]} 8. Bc4 {[%clk 0:02:55.9]}
8... h6 {[%clk 0:02:13.8]} 9. a4 {[%clk 0:02:53.6]} 9... Kh7 {[%clk 0:02:12.3]}
10. Ba2 {[%clk 0:02:26.9]} 10... f5 {[%clk 0:02:04.7]} 11. dxe5 {[%clk
0:02:23.7]} 11... dxe5 {[%clk 0:02:05.6]} 12. h4 {[%clk 0:02:16.6]} 12... Nc6
{[%clk 0:02:02]} 13. Ng5+ {[%clk 0:02:08.9]} 13... Kh8 {[%clk 0:01:56.7]} 14.
Ne6 {[%clk 0:01:46.9]} 14... Qxh4 {[%clk 0:01:56.6]} 15. Nxg7 {[%clk 0:01:45.8]}
15... Nc5 {[%clk 0:01:48.8]} 16. Nf3 {[%clk 0:01:27.2]} 16... Qf6 {[%clk
0:01:43.9]} 17. b4 {[%clk 0:01:18.2]} 17... e4 {[%clk 0:01:26.3]} 18. Bf4 {[%clk
0:00:58.8]} 18... exf3 {[%clk 0:01:20.7]} 19. gxf3 {[%clk 0:00:15.2]} 19... g5
{[%clk 0:01:19.4]} 20. bxc5 {[%clk 0:00:11.3]} 20... gxf4 {[%clk 0:01:18.3]} 21.
Nh5 {[%clk 0:00:12.2]} 21... Qc3+ {[%clk 0:01:18.2]} 22. Kf1 {[%clk 0:00:13.8]}
22... fxe3 {[%clk 0:01:18.8]} 23. fxe3 {[%clk 0:00:14.2]} 23... Qxe3 {[%clk
0:01:16.4]} 24. Rg1 {[%clk 0:00:12.8]} 24... f4 {[%clk 0:01:02.1]} 25. Kg2
{[%clk 0:00:07.1]} 25... Bf5 {[%clk 0:00:58.2]} 26. Kh2 {[%clk 0:00:07.2]} 26...
Qf2+ {[%clk 0:00:57.3]} 27. Rg2 {[%clk 0:00:06.1]} 27... Qh4+ {[%clk 0:00:58.2]}
28. Kg1 {[%clk 0:00:07.8]} 28... Qxh5 {[%clk 0:00:59.4]} 29. Qd5 {[%clk
0:00:08.3]} 29... Rad8 {[%clk 0:00:56.3]} 30. Qb3 {[%clk 0:00:09.2]} 30... Nd4
{[%clk 0:00:52.9]} 31. Qb2 {[%clk 0:00:06]} 31... Kh7 {[%clk 0:00:52.3]} 32. Rf1
{[%clk 0:00:05.1]} 32... Rd7 {[%clk 0:00:40]} 33. c6 {[%clk 0:00:05.6]} 33...
bxc6 {[%clk 0:00:40.8]} 34. c4 {[%clk 0:00:07]} 34... Nxf3+ {[%clk 0:00:38.3]}
35. Rxf3 {[%clk 0:00:06.2]} 35... Qxf3 {[%clk 0:00:39.4]} 36. c5 {[%clk
0:00:06.5]} 36... Rd1+ {[%clk 0:00:39.8]} 0-1

[Event "*** MasterClass Titled Tuesday Blitz"]
[Site "Chess.com"]
[Date "2017.09.05"]
[Round "7"]
[White "Vamostodorecto"]
[Black "Kirill_Klukin"]
[Result "0-1"]
[WhiteElo "2332"]
[BlackElo "2498"]
[TimeControl "180+2"]
[EndTime "14:41:50 PDT"]
[Termination "Kirill_Klukin won on time"]

1. d4 {[%clk 0:03:01.9]} 1... Nf6 {[%clk 0:02:59.3]} 2. c4 {[%clk 0:03:02.6]}
2... g6 {[%clk 0:02:54.6]} 3. Nc3 {[%clk 0:03:03.4]} 3... Bg7 {[%clk 0:02:56.6]}
4. e4 {[%clk 0:03:04.1]} 4... d6 {[%clk 0:02:58.2]} 5. Be2 {[%clk 0:03:05.7]}
5... O-O {[%clk 0:02:59.9]} 6. Nf3 {[%clk 0:03:07.3]} 6... Na6 {[%clk
0:03:01.8]} 7. O-O {[%clk 0:03:06.8]} 7... e5 {[%clk 0:03:03.4]} 8. Be3 {[%clk
0:03:07.4]} 8... Ng4 {[%clk 0:03:05.3]} 9. Bg5 {[%clk 0:03:09]} 9... Qe8 {[%clk
0:03:06.8]} 10. dxe5 {[%clk 0:03:10.3]} 10... dxe5 {[%clk 0:03:09]} 11. Qc1
{[%clk 0:03:08.3]} 11... h6 {[%clk 0:02:45.3]} 12. Bd2 {[%clk 0:03:04.6]} 12...
Kh7 {[%clk 0:02:46.8]} 13. c5 {[%clk 0:03:04.3]} 13... Nxc5 {[%clk 0:02:09.9]}
14. Nd5 {[%clk 0:02:54.9]} 14... Qc6 {[%clk 0:01:32.7]} 15. Bb4 {[%clk
0:01:56.6]} 15... b6 {[%clk 0:01:12.7]} 16. Bxc5 {[%clk 0:01:54.6]} 16... bxc5
{[%clk 0:01:13.2]} 17. h3 {[%clk 0:01:53]} 17... Nf6 {[%clk 0:01:05.1]} 18. Nxe5
{[%clk 0:01:54.1]} 18... Qe6 {[%clk 0:00:50.1]} 19. Ng4 {[%clk 0:01:30.2]} 19...
Nxd5 {[%clk 0:00:39.3]} 20. Bc4 {[%clk 0:00:38.2]} 20... Qxe4 {[%clk 0:00:23.4]}
21. Re1 {[%clk 0:00:37.6]} 21... Qf5 {[%clk 0:00:24.9]} 22. Re5 {[%clk
0:00:28.1]} 22... Bxe5 {[%clk 0:00:18]} 23. Bxd5 {[%clk 0:00:28.9]} 23... Rb8
{[%clk 0:00:17]} 24. Qxh6+ {[%clk 0:00:23.4]} 24... Kg8 {[%clk 0:00:18.4]} 25.
Ne3 {[%clk 0:00:20.9]} 25... Qf6 {[%clk 0:00:17.1]} 26. Nc4 {[%clk 0:00:10.3]}
26... Bf4 {[%clk 0:00:16.6]} 0-1

[Event "*** MasterClass Titled Tuesday Blitz"]
[Site "Chess.com"]
[Date "2017.09.05"]
[Round "7"]
[White "XeresLt"]
[Black "2L8IWUN"]
[Result "0-1"]
[WhiteElo "2364"]
[BlackElo "1797"]
[TimeControl "180+2"]
[EndTime "14:41:50 PDT"]
[Termination "2L8IWUN won by resignation"]

1. e4 {[%clk 0:03:01.9]} 1... c5 {[%clk 0:02:56.5]} 2. Nf3 {[%clk 0:03:00.6]}
2... d6 {[%clk 0:02:15]} 3. d4 {[%clk 0:03:01.4]} 3... cxd4 {[%clk 0:02:17.8]}
4. Nxd4 {[%clk 0:03:02.6]} 4... Nf6 {[%clk 0:02:20.6]} 5. Nc3 {[%clk 0:03:04.2]}
5... Nc6 {[%clk 0:02:16.7]} 6. Bg5 {[%clk 0:03:03.5]} 6... e6 {[%clk 0:02:11.4]}
7. Qd2 {[%clk 0:03:01.3]} 7... a6 {[%clk 0:02:05.1]} 8. Bc4 {[%clk 0:02:59.1]}
8... Bd7 {[%clk 0:00:59.5]} 9. Bb3 {[%clk 0:02:58.1]} 9... Be7 {[%clk
0:00:57.5]} 10. O-O-O {[%clk 0:02:53.4]} 10... h6 {[%clk 0:00:54.6]} 11. Bh4
{[%clk 0:02:45.6]} 11... O-O {[%clk 0:00:52.2]} 12. Kb1 {[%clk 0:02:38.2]} 12...
Na5 {[%clk 0:00:47.7]} 13. f3 {[%clk 0:02:29.8]} 13... Nxe4 {[%clk 0:00:45.5]}
14. Nxe4 {[%clk 0:02:27.8]} 14... Bxh4 {[%clk 0:00:42.8]} 15. Nxd6 {[%clk
0:02:28.8]} 15... Qb6 {[%clk 0:00:37.7]} 16. Ne4 {[%clk 0:02:10.9]} 16... Rfd8
{[%clk 0:00:34.9]} 17. Qf4 {[%clk 0:01:58.9]} 17... Be7 {[%clk 0:00:32.5]} 18.
g4 {[%clk 0:01:58.9]} 18... Nxb3 {[%clk 0:00:29.7]} 19. axb3 {[%clk 0:01:58.4]}
19... a5 {[%clk 0:00:27.6]} 20. g5 {[%clk 0:01:56.1]} 20... hxg5 {[%clk
0:00:25.5]} 21. Nxg5 {[%clk 0:01:53.6]} 21... Bf6 {[%clk 0:00:25.8]} 22. Qh4
{[%clk 0:01:45.7]} 22... a4 {[%clk 0:00:25.9]} 23. Rhg1 {[%clk 0:01:30.3]} 23...
axb3 {[%clk 0:00:22.6]} 24. Nxb3 {[%clk 0:01:26.1]} 24... Qa7 {[%clk 0:00:23.4]}
25. Qh7+ {[%clk 0:01:21.4]} 25... Kf8 {[%clk 0:00:22.7]} 26. c3 {[%clk 0:00:41]}
26... Qa2+ {[%clk 0:00:20.4]} 27. Kc2 {[%clk 0:00:41.8]} 27... Ba4 {[%clk
0:00:21.4]} 28. Nxe6+ {[%clk 0:00:28.8]} 28... fxe6 {[%clk 0:00:17.7]} 29. Qh8+
{[%clk 0:00:29.9]} 29... Kf7 {[%clk 0:00:14.7]} 30. Qh5+ {[%clk 0:00:30.4]}
30... Kg8 {[%clk 0:00:08.8]} 31. Rxd8+ {[%clk 0:00:19.9]} 31... Rxd8 {[%clk
0:00:10.7]} 0-1

[Event "*** MasterClass Titled Tuesday Blitz"]
[Site "Chess.com"]
[Date "2017.09.05"]
[Round "7"]
[White "3f32"]
[Black "Tarlev_Konstantin"]
[Result "0-1"]
[WhiteElo "2379"]
[BlackElo "2592"]
[TimeControl "180+2"]
[EndTime "14:41:57 PDT"]
[Termination "Tarlev_Konstantin won by resignation"]

1. d4 {[%clk 0:02:59.2]} 1... Nf6 {[%clk 0:02:38.7]} 2. c4 {[%clk 0:02:58.2]}
2... e6 {[%clk 0:02:39.5]} 3. Nc3 {[%clk 0:02:53.9]} 3... Bb4 {[%clk 0:02:38.3]}
4. e3 {[%clk 0:02:51]} 4... O-O {[%clk 0:02:35.4]} 5. Ne2 {[%clk 0:02:50.2]}
5... d5 {[%clk 0:02:36.2]} 6. a3 {[%clk 0:02:50]} 6... Be7 {[%clk 0:02:38.2]} 7.
cxd5 {[%clk 0:02:50.4]} 7... exd5 {[%clk 0:02:38.7]} 8. g3 {[%clk 0:02:51.9]}
8... c6 {[%clk 0:02:40.7]} 9. Bg2 {[%clk 0:02:52.4]} 9... a5 {[%clk 0:02:42.5]}
10. O-O {[%clk 0:02:49.1]} 10... Na6 {[%clk 0:02:44]} 11. Nf4 {[%clk 0:02:47.8]}
11... Re8 {[%clk 0:02:36.4]} 12. h3 {[%clk 0:02:48.1]} 12... Bd6 {[%clk
0:02:37.3]} 13. Nd3 {[%clk 0:02:48.8]} 13... Bf5 {[%clk 0:02:35.1]} 14. g4
{[%clk 0:02:49]} 14... Bxd3 {[%clk 0:02:23.7]} 15. Qxd3 {[%clk 0:02:50.9]} 15...
Nc7 {[%clk 0:02:25.1]} 16. Bd2 {[%clk 0:02:46]} 16... Ne6 {[%clk 0:02:25.4]} 17.
Na4 {[%clk 0:02:40.9]} 17... Ng5 {[%clk 0:02:25]} 18. Rac1 {[%clk 0:02:35.2]}
18... Nfe4 {[%clk 0:02:14.8]} 19. Be1 {[%clk 0:02:35.2]} 19... h5 {[%clk
0:02:09.7]} 20. f3 {[%clk 0:02:07.6]} 20... Ng3 {[%clk 0:02:05.8]} 21. Bxg3
{[%clk 0:02:03.7]} 21... Bxg3 {[%clk 0:02:06.4]} 22. f4 {[%clk 0:02:05.3]} 22...
Ne4 {[%clk 0:01:49.3]} 23. Bxe4 {[%clk 0:01:54]} 23... Rxe4 {[%clk 0:01:48.7]}
24. Kg2 {[%clk 0:01:44.4]} 24... Bh4 {[%clk 0:01:44.2]} 25. Nc5 {[%clk
0:01:44.8]} 25... Re7 {[%clk 0:01:44.8]} 26. g5 {[%clk 0:01:45.5]} 26... Qd6
{[%clk 0:01:38.8]} 27. Rf3 {[%clk 0:01:42.2]} 27... Rae8 {[%clk 0:01:40.1]} 28.
Rc3 {[%clk 0:01:40.6]} 28... f6 {[%clk 0:01:21.5]} 29. Qg6 {[%clk 0:01:33.4]}
29... b6 {[%clk 0:01:12.3]} 30. Na4 {[%clk 0:01:24.9]} 30... c5 {[%clk
0:01:13.1]} 31. dxc5 {[%clk 0:01:09.6]} 31... bxc5 {[%clk 0:01:13.2]} 32. gxf6
{[%clk 0:00:49]} 32... Bxf6 {[%clk 0:01:08.7]} 33. Nxc5 {[%clk 0:00:46.6]} 33...
d4 {[%clk 0:01:07.5]} 34. Rc1 {[%clk 0:00:45]} 34... dxe3 {[%clk 0:01:07.1]} 35.
Nd3 {[%clk 0:00:32.2]} 35... e2 {[%clk 0:01:04.7]} 36. Re1 {[%clk 0:00:30.5]}
36... Qd5 {[%clk 0:01:03.7]} 37. Ne5 {[%clk 0:00:09.7]} 37... Bxe5 {[%clk
0:01:01]} 38. Rxe2 {[%clk 0:00:10.4]} 38... Bf6 {[%clk 0:00:56.2]} 39. Qxe8+
{[%clk 0:00:10.3]} 39... Rxe8 {[%clk 0:00:56.9]} 40. Rxe8+ {[%clk 0:00:11.5]}
40... Kh7 {[%clk 0:00:58.4]} 41. Re2 {[%clk 0:00:13.4]} 41... Qb5 {[%clk
0:00:57.9]} 42. Rff2 {[%clk 0:00:09.5]} 42... Bd4 {[%clk 0:00:59.4]} 0-1

[Event "*** MasterClass Titled Tuesday Blitz"]
[Site "Chess.com"]
[Date "2017.09.05"]
[Round "7"]
[White "TomsKantans"]
[Black "kikydu96"]
[Result "1-0"]
[WhiteElo "2427"]
[BlackElo "2318"]
[TimeControl "180+2"]
[EndTime "14:42:01 PDT"]
[Termination "TomsKantans won on time"]

1. e4 {[%clk 0:03:01.9]} 1... c5 {[%clk 0:02:59.6]} 2. Nf3 {[%clk 0:02:54.9]}
2... d6 {[%clk 0:02:59.4]} 3. Bb5+ {[%clk 0:02:50.1]} 3... Bd7 {[%clk
0:02:55.8]} 4. a4 {[%clk 0:02:50.3]} 4... Nc6 {[%clk 0:02:53.3]} 5. O-O {[%clk
0:02:50.7]} 5... Nf6 {[%clk 0:02:54.2]} 6. Re1 {[%clk 0:02:46]} 6... e6 {[%clk
0:02:55]} 7. c3 {[%clk 0:02:42]} 7... Be7 {[%clk 0:02:54.9]} 8. d4 {[%clk
0:02:14.8]} 8... cxd4 {[%clk 0:02:42.9]} 9. cxd4 {[%clk 0:02:14.6]} 9... O-O
{[%clk 0:02:44]} 10. Nc3 {[%clk 0:02:12.9]} 10... Rc8 {[%clk 0:02:39]} 11. h3
{[%clk 0:02:04]} 11... e5 {[%clk 0:02:36.2]} 12. Be3 {[%clk 0:01:55.5]} 12... a6
{[%clk 0:02:26.8]} 13. Bf1 {[%clk 0:01:53]} 13... Re8 {[%clk 0:02:20.2]} 14. Qb3
{[%clk 0:01:36.8]} 14... Na5 {[%clk 0:02:13.5]} 15. Qa2 {[%clk 0:01:36.6]} 15...
Be6 {[%clk 0:02:14.2]} 16. d5 {[%clk 0:01:37.4]} 16... Bd7 {[%clk 0:02:07.9]}
17. Rec1 {[%clk 0:00:40.3]} 17... Rxc3 {[%clk 0:01:03.5]} 18. Rxc3 {[%clk
0:00:40.3]} 18... Nxe4 {[%clk 0:01:04.5]} 19. Rcc1 {[%clk 0:00:35.8]} 19... b6
{[%clk 0:00:21.6]} 20. Bxa6 {[%clk 0:00:32.1]} 20... Nc5 {[%clk 0:00:19.1]} 21.
Bc4 {[%clk 0:00:25.4]} 21... f5 {[%clk 0:00:16.9]} 22. b4 {[%clk 0:00:23.3]}
22... Nxc4 {[%clk 0:00:17.1]} 23. Qxc4 {[%clk 0:00:21.6]} 23... Nxa4 {[%clk
0:00:18.3]} 24. b5 {[%clk 0:00:13.2]} 24... Nc5 {[%clk 0:00:18.6]} 25. Bxc5
{[%clk 0:00:14.2]} 25... bxc5 {[%clk 0:00:19.7]} 26. Ra7 {[%clk 0:00:15.1]}
26... Bf6 {[%clk 0:00:19]} 27. b6 {[%clk 0:00:15.2]} 27... e4 {[%clk 0:00:19.4]}
28. Ne1 {[%clk 0:00:15.8]} 28... f4 {[%clk 0:00:10.4]} 29. b7 {[%clk 0:00:15.4]}
29... Qb8 {[%clk 0:00:10.2]} 30. Qa6 {[%clk 0:00:15.2]} 30... e3 {[%clk
0:00:05.5]} 31. fxe3 {[%clk 0:00:16.3]} 31... fxe3 {[%clk 0:00:05]} 32. Ra8
{[%clk 0:00:17.5]} 32... Qc7 {[%clk 0:00:05.9]} 33. Rxe8+ {[%clk 0:00:18.3]}
33... Bxe8 {[%clk 0:00:06.5]} 34. Rb1 {[%clk 0:00:19.5]} 1-0

[Event "*** MasterClass Titled Tuesday Blitz"]
[Site "Chess.com"]
[Date "2017.09.05"]
[Round "7"]
[White "ChessQueen"]
[Black "JaimeSantosLatasa"]
[Result "0-1"]
[WhiteElo "2591"]
[BlackElo "2588"]
[TimeControl "180+2"]
[EndTime "14:42:08 PDT"]
[Termination "JaimeSantosLatasa won by resignation"]

1. e4 {[%clk 0:03:01.9]} 1... c5 {[%clk 0:02:54.2]} 2. Nf3 {[%clk 0:03:02.8]}
2... d6 {[%clk 0:02:54.6]} 3. Bb5+ {[%clk 0:03:03.3]} 3... Nd7 {[%clk 0:02:55]}
4. O-O {[%clk 0:02:59.5]} 4... a6 {[%clk 0:02:55.5]} 5. Bd3 {[%clk 0:02:57.7]}
5... Ngf6 {[%clk 0:02:55.5]} 6. c3 {[%clk 0:02:58.6]} 6... b5 {[%clk 0:02:56.5]}
7. a4 {[%clk 0:02:56.3]} 7... Bb7 {[%clk 0:02:56.9]} 8. Re1 {[%clk 0:02:56.9]}
8... e6 {[%clk 0:02:48.9]} 9. Bc2 {[%clk 0:02:57.2]} 9... Rc8 {[%clk 0:02:47.5]}
10. d4 {[%clk 0:02:50.2]} 10... cxd4 {[%clk 0:02:47.9]} 11. Nxd4 {[%clk
0:02:47.7]} 11... bxa4 {[%clk 0:02:47.1]} 12. Bg5 {[%clk 0:02:18]} 12... Be7
{[%clk 0:02:43.6]} 13. Nd2 {[%clk 0:02:16.6]} 13... h6 {[%clk 0:02:40]} 14. Bxf6
{[%clk 0:02:09.4]} 14... Bxf6 {[%clk 0:02:39.7]} 15. Bxa4 {[%clk 0:02:09.2]}
15... O-O {[%clk 0:02:39.6]} 16. Qe2 {[%clk 0:01:56.1]} 16... Nb6 {[%clk
0:02:33.1]} 17. Bb3 {[%clk 0:01:49.1]} 17... Re8 {[%clk 0:02:32.7]} 18. Nf1
{[%clk 0:01:40.4]} 18... Qc7 {[%clk 0:02:26.6]} 19. Ng3 {[%clk 0:01:40.3]} 19...
Qc5 {[%clk 0:02:23.4]} 20. Red1 {[%clk 0:01:32.9]} 20... g6 {[%clk 0:02:20.8]}
21. Nc2 {[%clk 0:01:20.3]} 21... Bg7 {[%clk 0:02:18.1]} 22. Ne3 {[%clk
0:01:19.7]} 22... h5 {[%clk 0:02:15.8]} 23. Nc2 {[%clk 0:01:13.8]} 23... h4
{[%clk 0:02:11.9]} 24. Nf1 {[%clk 0:01:14.6]} 24... d5 {[%clk 0:02:13.2]} 25. e5
{[%clk 0:01:12.5]} 25... Nd7 {[%clk 0:02:13.9]} 26. Ba4 {[%clk 0:01:10.3]} 26...
Bc6 {[%clk 0:02:12.4]} 27. Bxc6 {[%clk 0:01:08]} 27... Qxc6 {[%clk 0:02:10]} 28.
Rxa6 {[%clk 0:01:05.4]} 28... Qb7 {[%clk 0:02:10.9]} 29. Nb4 {[%clk 0:00:55.2]}
29... Nxe5 {[%clk 0:02:10.5]} 30. Ne3 {[%clk 0:00:52.4]} 30... h3 {[%clk
0:02:07.3]} 31. f4 {[%clk 0:00:47.4]} 31... Nc4 {[%clk 0:02:04]} 32. Nxc4 {[%clk
0:00:35.5]} 32... Rxc4 {[%clk 0:02:05.9]} 33. Rda1 {[%clk 0:00:35.1]} 33... hxg2
{[%clk 0:02:04.2]} 34. Nd3 {[%clk 0:00:32.8]} 34... Re4 {[%clk 0:01:58.8]} 35.
Qxg2 {[%clk 0:00:32.5]} 35... Qb5 {[%clk 0:01:59.7]} 36. Qd2 {[%clk 0:00:27.3]}
36... d4 {[%clk 0:01:55]} 37. c4 {[%clk 0:00:23.3]} 37... Qxc4 {[%clk
0:01:55.7]} 38. R6a4 {[%clk 0:00:22.5]} 38... Qd5 {[%clk 0:01:53.9]} 39. Ra5
{[%clk 0:00:23.6]} 39... Qd8 {[%clk 0:01:50.1]} 40. b4 {[%clk 0:00:21.6]} 40...
Re3 {[%clk 0:01:45]} 41. b5 {[%clk 0:00:22.9]} 41... e5 {[%clk 0:01:41.7]} 42.
Nxe5 {[%clk 0:00:14.5]} 42... Bxe5 {[%clk 0:01:40.7]} 43. fxe5 {[%clk
0:00:15.7]} 43... Qg5+ {[%clk 0:01:40.3]} 44. Qg2 {[%clk 0:00:16.2]} 44... Qxe5
{[%clk 0:01:38.5]} 45. Rf1 {[%clk 0:00:12.7]} 45... Re1 {[%clk 0:01:37.1]} 46.
Ra1 {[%clk 0:00:09.9]} 46... Rxa1 {[%clk 0:01:37.1]} 47. Rxa1 {[%clk 0:00:10.4]}
47... Qxb5 {[%clk 0:01:37.7]} 48. Kh1 {[%clk 0:00:11.5]} 48... d3 {[%clk
0:01:37.5]} 49. Rf1 {[%clk 0:00:12.4]} 49... Rd8 {[%clk 0:01:37.5]} 50. Qf3
{[%clk 0:00:13.1]} 50... Qd5 {[%clk 0:01:38.4]} 51. Qxd5 {[%clk 0:00:14.1]}
51... Rxd5 {[%clk 0:01:40.3]} 52. Rd1 {[%clk 0:00:15.7]} 52... d2 {[%clk
0:01:39.6]} 53. Kg2 {[%clk 0:00:17.2]} 53... Kg7 {[%clk 0:01:39]} 54. Kf3 {[%clk
0:00:18.7]} 54... Kh6 {[%clk 0:01:40.3]} 55. Ke3 {[%clk 0:00:20]} 55... Kh5
{[%clk 0:01:40.7]} 56. Rxd2 {[%clk 0:00:19.4]} 56... Rxd2 {[%clk 0:01:41.5]} 57.
Kxd2 {[%clk 0:00:20.6]} 57... Kh4 {[%clk 0:01:43.4]} 0-1

[Event "*** MasterClass Titled Tuesday Blitz"]
[Site "Chess.com"]
[Date "2017.09.05"]
[Round "7"]
[White "Blitzstream"]
[Black "stefanodinn"]
[Result "1-0"]
[WhiteElo "2478"]
[BlackElo "2202"]
[TimeControl "180+2"]
[EndTime "14:42:14 PDT"]
[Termination "Blitzstream won on time"]

1. g4 {[%clk 0:03:01.9]} 1... d5 {[%clk 0:03:00.2]} 2. Bg2 {[%clk 0:03:02.5]}
2... c6 {[%clk 0:02:56.3]} 3. g5 {[%clk 0:03:02.7]} 3... e5 {[%clk 0:02:54.8]}
4. d4 {[%clk 0:03:03.4]} 4... e4 {[%clk 0:02:44.2]} 5. h4 {[%clk 0:03:02.4]}
5... h6 {[%clk 0:02:44.5]} 6. c4 {[%clk 0:02:54.6]} 6... hxg5 {[%clk 0:02:43.6]}
7. hxg5 {[%clk 0:02:49.8]} 7... Rxh1 {[%clk 0:02:44.4]} 8. Bxh1 {[%clk
0:02:51.7]} 8... Be7 {[%clk 0:02:40.3]} 9. g6 {[%clk 0:02:48.7]} 9... fxg6
{[%clk 0:02:35.9]} 10. Nc3 {[%clk 0:02:49.2]} 10... Nf6 {[%clk 0:02:36.4]} 11.
Bf4 {[%clk 0:02:45.3]} 11... Be6 {[%clk 0:02:31.5]} 12. Qb3 {[%clk 0:02:45.2]}
12... Qb6 {[%clk 0:02:29.4]} 13. c5 {[%clk 0:02:24.1]} 13... Qxb3 {[%clk
0:02:26.9]} 14. axb3 {[%clk 0:02:26]} 14... Nbd7 {[%clk 0:02:22.1]} 15. b4
{[%clk 0:02:25.7]} 15... Nh5 {[%clk 0:01:32.2]} 16. Bh2 {[%clk 0:02:23.3]} 16...
Ndf6 {[%clk 0:01:30.9]} 17. f3 {[%clk 0:01:46]} 17... exf3 {[%clk 0:01:24.3]}
18. exf3 {[%clk 0:01:47.9]} 18... Kf7 {[%clk 0:01:01.6]} 19. Nge2 {[%clk
0:01:43.2]} 19... Bf5 {[%clk 0:00:37.1]} 20. b5 {[%clk 0:01:15.7]} 20... Bd3
{[%clk 0:00:37]} 21. bxc6 {[%clk 0:00:54.3]} 21... bxc6 {[%clk 0:00:38]} 22. Kd2
{[%clk 0:00:56]} 22... Bxe2 {[%clk 0:00:31.6]} 23. Nxe2 {[%clk 0:00:52.6]} 23...
a5 {[%clk 0:00:27]} 24. Ra4 {[%clk 0:00:31.5]} 24... Bd8 {[%clk 0:00:22.1]} 25.
Bg2 {[%clk 0:00:30.4]} 25... Ne8 {[%clk 0:00:11.9]} 26. Bh3 {[%clk 0:00:29.4]}
26... Nhf6 {[%clk 0:00:07.3]} 27. Nf4 {[%clk 0:00:29.6]} 27... Bc7 {[%clk
0:00:06.1]} 28. Be6+ {[%clk 0:00:25.6]} 28... Ke7 {[%clk 0:00:06.5]} 29. Bh3
{[%clk 0:00:26.2]} 29... g5 {[%clk 0:00:05.2]} 30. Ng6+ {[%clk 0:00:25.3]} 30...
Kf7 {[%clk 0:00:04.3]} 31. Ne5+ {[%clk 0:00:23]} 31... Bxe5 {[%clk 0:00:05.1]}
32. Bxe5 {[%clk 0:00:24.9]} 32... Nh5 {[%clk 0:00:03.1]} 33. Bd7 {[%clk
0:00:23.1]} 33... Ra6 {[%clk 0:00:02.9]} 34. b4 {[%clk 0:00:23]} 34... Nef6
{[%clk 0:00:04]} 35. Bc8 {[%clk 0:00:17.6]} 35... Ra8 {[%clk 0:00:04.5]} 36. Bb7
{[%clk 0:00:19]} 36... Rb8 {[%clk 0:00:05.7]} 37. Bxb8 {[%clk 0:00:19.3]} 1-0